[Event "Early-Titled-Tuesday-Blitz-December-26-2023"]
[Site "Chess.com"]
[Date "2023.12.26"]
[Round "1"]
[White "JimDiGrease"]
[Black "Logman74"]
[Result "1-0"]
[WhiteElo "2978"]
[BlackElo "2529"]
[TimeControl "180+1"]
[EndTime "8:01:36 PST"]
[Termination "JimDiGrease won by resignation"]

1. d4 {[%clk 0:03:00.9]} 1... Nf6 {[%clk 0:02:57.8]} 2. c4 {[%clk 0:03:01]} 2...
e6 {[%clk 0:02:54.2]} 3. Bf4 {[%clk 0:03:00.9]} 3... Bb4+ {[%clk 0:02:53.4]} 4.
Nd2 {[%clk 0:03:01]} 4... O-O {[%clk 0:02:53.6]} 5. a3 {[%clk 0:03:01.2]} 5...
Be7 {[%clk 0:02:50.1]} 6. e4 {[%clk 0:03:00.8]} 6... d6 {[%clk 0:02:46.7]} 7.
Ngf3 {[%clk 0:03:01]} 7... Nc6 {[%clk 0:02:46.8]} 8. Be2 {[%clk 0:02:59.2]} 8...
Re8 {[%clk 0:02:41.2]} 9. O-O {[%clk 0:02:56.3]} 9... Bf8 {[%clk 0:02:39.8]} 10.
e5 {[%clk 0:02:44.5]} 10... dxe5 {[%clk 0:02:39.4]} 11. dxe5 {[%clk 0:02:45.4]}
11... Nd7 {[%clk 0:02:37.1]} 12. Qc2 {[%clk 0:02:40.2]} 12... Ndxe5 {[%clk
0:02:34.8]} 13. Nxe5 {[%clk 0:02:34.5]} 1-0

[Event "Early-Titled-Tuesday-Blitz-December-26-2023"]
[Site "Chess.com"]
[Date "2023.12.26"]
[Round "1"]
[White "Karacsonyi_Gellert"]
[Black "thechesscorner64"]
[Result "1-0"]
[WhiteElo "2733"]
[BlackElo "2432"]
[TimeControl "180+1"]
[EndTime "8:02:19 PST"]
[Termination "Karacsonyi_Gellert won by resignation"]

1. e4 {[%clk 0:02:59.6]} 1... c5 {[%clk 0:02:59.7]} 2. Nf3 {[%clk 0:02:59.1]}
2... e6 {[%clk 0:03:00.2]} 3. d4 {[%clk 0:02:59.8]} 3... cxd4 {[%clk 0:03:00.5]}
4. Nxd4 {[%clk 0:03:00.7]} 4... a6 {[%clk 0:03:00.7]} 5. c4 {[%clk 0:03:00.2]}
5... Qc7 {[%clk 0:03:00.9]} 6. Nc3 {[%clk 0:03:00.1]} 6... d6 {[%clk 0:03:01.6]}
7. Be2 {[%clk 0:02:59]} 7... Nf6 {[%clk 0:03:02.4]} 8. O-O {[%clk 0:02:58.8]}
8... Nbd7 {[%clk 0:03:03.1]} 9. f4 {[%clk 0:02:54.4]} 9... b6 {[%clk 0:03:03.3]}
10. b4 {[%clk 0:02:53.8]} 10... Bb7 {[%clk 0:03:03.6]} 11. Qd3 {[%clk
0:02:54.1]} 11... Rc8 {[%clk 0:03:02.7]} 12. a3 {[%clk 0:02:54.6]} 12... Be7
{[%clk 0:02:59.4]} 13. Bb2 {[%clk 0:02:54.6]} 13... O-O {[%clk 0:02:59.5]} 14.
Rac1 {[%clk 0:02:52.5]} 14... Qb8 {[%clk 0:02:59.1]} 15. g4 {[%clk 0:02:53.1]}
15... Qa8 {[%clk 0:02:56.4]} 16. g5 {[%clk 0:02:53.4]} 16... Nxe4 {[%clk
0:02:54.6]} 17. Qh3 {[%clk 0:02:54]} 17... Nxc3 {[%clk 0:02:39.5]} 18. Bxc3
{[%clk 0:02:51.2]} 18... d5 {[%clk 0:02:39.9]} 19. Bd3 {[%clk 0:02:46.2]} 19...
g6 {[%clk 0:02:39.3]} 20. Qh6 {[%clk 0:02:43.8]} 20... e5 {[%clk 0:02:32.4]} 21.
Nf5 {[%clk 0:02:39.4]} 21... gxf5 {[%clk 0:02:29.1]} 22. Bxf5 {[%clk 0:02:40.3]}
1-0

[Event "Early-Titled-Tuesday-Blitz-December-26-2023"]
[Site "Chess.com"]
[Date "2023.12.26"]
[Round "1"]
[White "Kiborg95"]
[Black "Practical-Play"]
[Result "1-0"]
[WhiteElo "2808"]
[BlackElo "2476"]
[TimeControl "180+1"]
[EndTime "8:02:30 PST"]
[Termination "Kiborg95 won by resignation"]

1. e4 {[%clk 0:03:00.9]} 1... e5 {[%clk 0:02:55.1]} 2. Nf3 {[%clk 0:03:01]} 2...
Nc6 {[%clk 0:02:52.9]} 3. Bc4 {[%clk 0:03:01.6]} 3... Nf6 {[%clk 0:02:52.2]} 4.
d3 {[%clk 0:03:02.2]} 4... Bc5 {[%clk 0:02:51.6]} 5. O-O {[%clk 0:03:02]} 5...
O-O {[%clk 0:02:51.6]} 6. Re1 {[%clk 0:03:01.9]} 6... d5 {[%clk 0:02:41.3]} 7.
exd5 {[%clk 0:03:01.7]} 7... Nxd5 {[%clk 0:02:42.2]} 8. Nxe5 {[%clk 0:03:01.5]}
8... Nxe5 {[%clk 0:02:40.4]} 9. Rxe5 {[%clk 0:03:02.4]} 9... Bxf2+ {[%clk
0:02:38.2]} 10. Kxf2 {[%clk 0:03:03.3]} 10... Qh4+ {[%clk 0:02:19.4]} 11. Kf1
{[%clk 0:02:46.1]} 11... Qxh2 {[%clk 0:02:18.3]} 12. Rh5 {[%clk 0:02:29.2]} 1-0

[Event "Early-Titled-Tuesday-Blitz-December-26-2023"]
[Site "Chess.com"]
[Date "2023.12.26"]
[Round "1"]
[White "slidingknight2775"]
[Black "SHIVACalypso"]
[Result "1/2-1/2"]
[WhiteElo "2676"]
[BlackElo "2383"]
[TimeControl "180+1"]
[EndTime "8:03:19 PST"]
[Termination "Game drawn by repetition"]

1. Nf3 {[%clk 0:03:00.9]} 1... Nf6 {[%clk 0:02:57.2]} 2. g3 {[%clk 0:02:58.3]}
2... g6 {[%clk 0:02:56.7]} 3. Bg2 {[%clk 0:02:58.8]} 3... Bg7 {[%clk 0:02:57.3]}
4. O-O {[%clk 0:02:59.7]} 4... O-O {[%clk 0:02:57.7]} 5. c4 {[%clk 0:03:00.4]}
5... c5 {[%clk 0:02:55.9]} 6. d4 {[%clk 0:02:58.9]} 6... cxd4 {[%clk 0:02:55.2]}
7. Nxd4 {[%clk 0:02:59.8]} 7... Nc6 {[%clk 0:02:55.2]} 8. Nc3 {[%clk 0:02:59.2]}
8... Nxd4 {[%clk 0:02:54.1]} 9. Qxd4 {[%clk 0:03:00.1]} 9... d6 {[%clk
0:02:54.6]} 10. b3 {[%clk 0:02:46.2]} 10... Be6 {[%clk 0:02:52]} 11. Bb2 {[%clk
0:02:45.1]} 11... Nd5 {[%clk 0:02:47.8]} 12. Qd2 {[%clk 0:02:42.9]} 12... Nxc3
{[%clk 0:02:47.8]} 13. Bxc3 {[%clk 0:02:43.8]} 13... Bxc3 {[%clk 0:02:47.7]} 14.
Qxc3 {[%clk 0:02:44.7]} 14... Qc7 {[%clk 0:02:45.2]} 15. Rac1 {[%clk 0:02:41.6]}
15... Rac8 {[%clk 0:02:45]} 16. Qd4 {[%clk 0:02:37.1]} 16... b6 {[%clk
0:02:44.6]} 17. h4 {[%clk 0:02:36.4]} 17... h5 {[%clk 0:02:40.7]} 18. Rfd1
{[%clk 0:02:34.4]} 18... Rfd8 {[%clk 0:02:40.7]} 19. Be4 {[%clk 0:02:27.3]}
19... d5 {[%clk 0:02:16.9]} 20. cxd5 {[%clk 0:02:16.8]} 20... Qxc1 {[%clk
0:02:15.5]} 21. Rxc1 {[%clk 0:02:17.7]} 21... Rxc1+ {[%clk 0:02:15.7]} 22. Kg2
{[%clk 0:02:18.2]} 22... Rc5 {[%clk 0:02:14.2]} 23. Qe3 {[%clk 0:02:09.2]} 23...
Bxd5 {[%clk 0:02:10.7]} 24. Bxd5 {[%clk 0:02:08.9]} 24... Rcxd5 {[%clk 0:02:10]}
25. Qxe7 {[%clk 0:02:08.6]} 25... R8d7 {[%clk 0:02:10.5]} 26. Qe8+ {[%clk
0:02:07.4]} 26... Kg7 {[%clk 0:02:10.7]} 27. Qe4 {[%clk 0:02:06.2]} 27... R5d6
{[%clk 0:02:07.3]} 28. Qe5+ {[%clk 0:02:05.8]} 28... Kg8 {[%clk 0:02:07]} 29.
Qe8+ {[%clk 0:02:05.9]} 29... Kg7 {[%clk 0:02:07]} 30. Qe5+ {[%clk 0:02:03.5]}
30... Kg8 {[%clk 0:02:06.9]} 31. Qe8+ {[%clk 0:01:59]} 31... Kg7 {[%clk
0:02:06]} 32. Qe5+ {[%clk 0:01:59.5]} 1/2-1/2

[Event "Early-Titled-Tuesday-Blitz-December-26-2023"]
[Site "Chess.com"]
[Date "2023.12.26"]
[Round "1"]
[White "Lion_DL"]
[Black "Vaibhavraut99"]
[Result "0-1"]
[WhiteElo "2365"]
[BlackElo "2672"]
[TimeControl "180+1"]
[EndTime "8:03:36 PST"]
[Termination "Vaibhavraut99 won by resignation"]

1. d4 {[%clk 0:03:00.9]} 1... Nf6 {[%clk 0:02:59.9]} 2. c4 {[%clk 0:03:01.4]}
2... e6 {[%clk 0:03:00.2]} 3. Nf3 {[%clk 0:03:01.3]} 3... Bb4+ {[%clk
0:03:00.2]} 4. Nbd2 {[%clk 0:03:01.1]} 4... O-O {[%clk 0:02:59.7]} 5. a3 {[%clk
0:03:01.5]} 5... Bxd2+ {[%clk 0:02:59.7]} 6. Bxd2 {[%clk 0:03:02.4]} 6... b6
{[%clk 0:03:00.4]} 7. Bg5 {[%clk 0:03:03.2]} 7... h6 {[%clk 0:03:00.1]} 8. Bxf6
{[%clk 0:03:03]} 8... Qxf6 {[%clk 0:03:01]} 9. e4 {[%clk 0:03:03.6]} 9... d6
{[%clk 0:03:01]} 10. Bd3 {[%clk 0:03:03.3]} 10... Bb7 {[%clk 0:03:01.5]} 11. O-O
{[%clk 0:03:03.3]} 11... Nd7 {[%clk 0:03:02.1]} 12. Re1 {[%clk 0:03:02]} 12...
e5 {[%clk 0:03:02.2]} 13. d5 {[%clk 0:03:01.7]} 13... a5 {[%clk 0:03:02.5]} 14.
b4 {[%clk 0:03:01.4]} 14... Qe7 {[%clk 0:02:58]} 15. Qb3 {[%clk 0:03:00.3]}
15... Bc8 {[%clk 0:02:57.4]} 16. Rec1 {[%clk 0:02:56.2]} 16... g6 {[%clk
0:02:52.5]} 17. Nd2 {[%clk 0:02:47.5]} 17... f5 {[%clk 0:02:43.5]} 18. f3 {[%clk
0:02:44.3]} 18... Qg5 {[%clk 0:02:43.6]} 19. Qb2 {[%clk 0:02:41.1]} 19... Qe3+
{[%clk 0:02:43.1]} 20. Kh1 {[%clk 0:02:36.2]} 20... Qxd3 {[%clk 0:02:38.2]} 21.
Re1 {[%clk 0:02:20.7]} 21... axb4 {[%clk 0:02:35.3]} 22. Qxb4 {[%clk 0:02:14.5]}
22... Nc5 {[%clk 0:02:31.1]} 23. a4 {[%clk 0:02:08.7]} 23... Bd7 {[%clk
0:02:20.1]} 24. Ra3 {[%clk 0:02:07.5]} 24... Qd4 {[%clk 0:02:20.3]} 25. Nb3
{[%clk 0:01:30]} 25... Nxb3 {[%clk 0:02:17.2]} 26. Qxb3 {[%clk 0:01:30.9]} 26...
fxe4 {[%clk 0:02:15.5]} 27. Rxe4 {[%clk 0:01:27.8]} 27... Qxe4 {[%clk
0:02:15.8]} 0-1

[Event "Early-Titled-Tuesday-Blitz-December-26-2023"]
[Site "Chess.com"]
[Date "2023.12.26"]
[Round "1"]
[White "yaguigor"]
[Black "tylityli"]
[Result "0-1"]
[WhiteElo "2585"]
[BlackElo "2252"]
[TimeControl "180+1"]
[EndTime "8:03:40 PST"]
[Termination "tylityli won by resignation"]

1. e4 {[%clk 0:03:00.1]} 1... e5 {[%clk 0:02:53.5]} 2. Nf3 {[%clk 0:02:59.3]}
2... Nc6 {[%clk 0:02:52.8]} 3. Bb5 {[%clk 0:02:59.8]} 3... a6 {[%clk 0:02:51.9]}
4. Ba4 {[%clk 0:02:59.8]} 4... Nf6 {[%clk 0:02:50.9]} 5. O-O {[%clk 0:02:59.9]}
5... Be7 {[%clk 0:02:50.5]} 6. Re1 {[%clk 0:02:59.3]} 6... b5 {[%clk 0:02:49.9]}
7. Bb3 {[%clk 0:02:59.6]} 7... d6 {[%clk 0:02:48.1]} 8. c3 {[%clk 0:02:59.1]}
8... O-O {[%clk 0:02:46.9]} 9. h3 {[%clk 0:02:58.9]} 9... Nd7 {[%clk 0:02:45.9]}
10. d4 {[%clk 0:02:58.4]} 10... Bf6 {[%clk 0:02:45.9]} 11. a4 {[%clk 0:02:56.3]}
11... Bb7 {[%clk 0:02:32]} 12. d5 {[%clk 0:02:51.7]} 12... Na5 {[%clk
0:02:31.5]} 13. Bc2 {[%clk 0:02:51.9]} 13... Nc4 {[%clk 0:02:20.4]} 14. b3
{[%clk 0:02:49.6]} 14... Ncb6 {[%clk 0:02:18.6]} 15. a5 {[%clk 0:02:46.7]} 15...
Nc8 {[%clk 0:02:18.3]} 16. Be3 {[%clk 0:02:45.2]} 16... c6 {[%clk 0:02:15.2]}
17. c4 {[%clk 0:02:45.6]} 17... g6 {[%clk 0:02:00.5]} 18. dxc6 {[%clk
0:02:19.2]} 18... Bxc6 {[%clk 0:01:58.9]} 19. Nc3 {[%clk 0:02:20.1]} 19... bxc4
{[%clk 0:01:25.9]} 20. bxc4 {[%clk 0:02:21]} 20... Nc5 {[%clk 0:01:25.7]} 21.
Nd5 {[%clk 0:02:16.6]} 21... Bg7 {[%clk 0:01:22.5]} 0-1

[Event "Early-Titled-Tuesday-Blitz-December-26-2023"]
[Site "Chess.com"]
[Date "2023.12.26"]
[Round "1"]
[White "ploxoi"]
[Black "Zhigalko_Sergei"]
[Result "0-1"]
[WhiteElo "2509"]
[BlackElo "2879"]
[TimeControl "180+1"]
[EndTime "8:03:48 PST"]
[Termination "Zhigalko_Sergei won by resignation"]

1. d4 {[%clk 0:02:56.6]} 1... Nf6 {[%clk 0:03:00.2]} 2. c4 {[%clk 0:02:56.8]}
2... e6 {[%clk 0:03:00.8]} 3. g3 {[%clk 0:02:56.4]} 3... c5 {[%clk 0:03:00.7]}
4. d5 {[%clk 0:02:56]} 4... exd5 {[%clk 0:03:00.7]} 5. cxd5 {[%clk 0:02:56.9]}
5... d6 {[%clk 0:03:01.5]} 6. Nc3 {[%clk 0:02:56.9]} 6... g6 {[%clk 0:03:01.6]}
7. Bg2 {[%clk 0:02:57.1]} 7... Bg7 {[%clk 0:03:02.2]} 8. Nf3 {[%clk 0:02:57.7]}
8... O-O {[%clk 0:03:02.7]} 9. O-O {[%clk 0:02:58.3]} 9... Re8 {[%clk 0:03:03]}
10. Nd2 {[%clk 0:02:58.4]} 10... a6 {[%clk 0:03:02.4]} 11. a4 {[%clk 0:02:58.7]}
11... Nbd7 {[%clk 0:03:00.4]} 12. h3 {[%clk 0:02:59.1]} 12... b6 {[%clk
0:02:59.7]} 13. Nc4 {[%clk 0:02:58.8]} 13... Ne5 {[%clk 0:02:59.7]} 14. Na3
{[%clk 0:02:55.7]} 14... Nh5 {[%clk 0:02:59.6]} 15. e4 {[%clk 0:02:53.9]} 15...
b5 {[%clk 0:02:59.1]} 16. axb5 {[%clk 0:02:49.9]} 16... axb5 {[%clk 0:03:00]}
17. Ncxb5 {[%clk 0:02:48.9]} 17... Ba6 {[%clk 0:03:00]} 18. Bd2 {[%clk
0:02:44.8]} 18... Qb6 {[%clk 0:02:59.1]} 19. Nc3 {[%clk 0:02:29.6]} 19... Bxf1
{[%clk 0:02:58.1]} 20. Bxf1 {[%clk 0:02:30.5]} 20... Qxb2 {[%clk 0:02:56.1]} 21.
Ra2 {[%clk 0:02:25.9]} 21... Qb4 {[%clk 0:02:39.1]} 22. Nc2 {[%clk 0:02:02.9]}
22... Qb3 {[%clk 0:02:35.6]} 23. Rxa8 {[%clk 0:01:56.1]} 23... Rxa8 {[%clk
0:02:36.5]} 24. g4 {[%clk 0:01:55.3]} 24... Nf4 {[%clk 0:02:08.7]} 25. Qb1
{[%clk 0:01:15.6]} 25... Nf3+ {[%clk 0:02:04.2]} 0-1

[Event "Early-Titled-Tuesday-Blitz-December-26-2023"]
[Site "Chess.com"]
[Date "2023.12.26"]
[Round "1"]
[White "ValentunHulka"]
[Black "BashirliSaadat"]
[Result "1-0"]
[WhiteElo "2747"]
[BlackElo "2435"]
[TimeControl "180+1"]
[EndTime "8:03:52 PST"]
[Termination "ValentunHulka won by resignation"]

1. d4 {[%clk 0:03:00]} 1... Nf6 {[%clk 0:02:58.2]} 2. c4 {[%clk 0:03:00.4]} 2...
g6 {[%clk 0:02:57.3]} 3. g3 {[%clk 0:02:58.9]} 3... Bg7 {[%clk 0:02:56.5]} 4.
Bg2 {[%clk 0:02:59.6]} 4... d5 {[%clk 0:02:55.3]} 5. cxd5 {[%clk 0:02:59]} 5...
Nxd5 {[%clk 0:02:50.7]} 6. Nf3 {[%clk 0:02:59.3]} 6... O-O {[%clk 0:02:46.2]} 7.
O-O {[%clk 0:02:59.5]} 7... Bg4 {[%clk 0:02:40]} 8. h3 {[%clk 0:02:55.3]} 8...
Bxf3 {[%clk 0:02:37.8]} 9. Bxf3 {[%clk 0:02:56.2]} 9... Nc6 {[%clk 0:02:36.2]}
10. e3 {[%clk 0:02:56]} 10... Qd7 {[%clk 0:02:30]} 11. Bg2 {[%clk 0:02:49.3]}
11... e6 {[%clk 0:02:27.8]} 12. Nc3 {[%clk 0:02:48.3]} 12... Nxc3 {[%clk
0:02:27.5]} 13. bxc3 {[%clk 0:02:48.5]} 13... Rad8 {[%clk 0:02:27.5]} 14. Rb1
{[%clk 0:02:48]} 14... Rb8 {[%clk 0:02:23.8]} 15. Kh1 {[%clk 0:02:43]} 15... e5
{[%clk 0:02:21.3]} 16. Qa4 {[%clk 0:02:39.8]} 16... b5 {[%clk 0:02:07.5]} 17.
Qa3 {[%clk 0:02:22.6]} 17... exd4 {[%clk 0:02:03.1]} 18. cxd4 {[%clk 0:02:21.3]}
18... Rfe8 {[%clk 0:01:46.4]} 19. Qc5 {[%clk 0:02:19.4]} 19... Re6 {[%clk
0:01:36.3]} 20. d5 {[%clk 0:02:16.7]} 20... Bf8 {[%clk 0:01:19.4]} 21. dxe6
{[%clk 0:02:13.7]} 21... Qd3 {[%clk 0:01:18.1]} 22. Qxc6 {[%clk 0:02:12.7]}
22... Qxb1 {[%clk 0:01:17.7]} 23. Ba3 {[%clk 0:02:11.4]} 23... Qxa2 {[%clk
0:01:16.2]} 24. exf7+ {[%clk 0:02:10.1]} 24... Kh8 {[%clk 0:01:12.9]} 25. Bxf8
{[%clk 0:02:08.7]} 1-0

[Event "Early-Titled-Tuesday-Blitz-December-26-2023"]
[Site "Chess.com"]
[Date "2023.12.26"]
[Round "1"]
[White "VitaliyChayka"]
[Black "Ezov"]
[Result "0-1"]
[WhiteElo "2569"]
[BlackElo "2152"]
[TimeControl "180+1"]
[EndTime "8:03:57 PST"]
[Termination "Ezov won by resignation"]

1. d4 {[%clk 0:03:00.9]} 1... d5 {[%clk 0:01:46.3]} 2. Bf4 {[%clk 0:03:01.1]}
2... c5 {[%clk 0:01:45.5]} 3. e3 {[%clk 0:03:01.4]} 3... Nc6 {[%clk 0:01:44.8]}
4. Nf3 {[%clk 0:03:01.3]} 4... Bg4 {[%clk 0:01:43.1]} 5. c3 {[%clk 0:02:58.7]}
5... Nf6 {[%clk 0:01:41.8]} 6. Qb3 {[%clk 0:02:55.2]} 6... Qb6 {[%clk
0:01:40.1]} 7. dxc5 {[%clk 0:02:53.6]} 7... Qxb3 {[%clk 0:01:36.8]} 8. axb3
{[%clk 0:02:54.5]} 8... a6 {[%clk 0:01:36.6]} 9. Nbd2 {[%clk 0:02:53.4]} 9...
Nd7 {[%clk 0:01:34.1]} 10. b4 {[%clk 0:02:51.4]} 10... e5 {[%clk 0:01:33.1]} 11.
Bg3 {[%clk 0:02:51.5]} 11... f6 {[%clk 0:01:28.4]} 12. h3 {[%clk 0:02:44.7]}
12... Be6 {[%clk 0:01:25.9]} 13. b5 {[%clk 0:02:42]} 13... Ncb8 {[%clk
0:01:23.3]} 14. bxa6 {[%clk 0:02:38.1]} 14... Nxa6 {[%clk 0:01:23.7]} 15. b4
{[%clk 0:02:37.6]} 15... Nc7 {[%clk 0:01:21.8]} 16. Rxa8+ {[%clk 0:02:36.5]}
16... Nxa8 {[%clk 0:01:22.7]} 17. Bb5 {[%clk 0:02:32.8]} 17... Nc7 {[%clk
0:01:20.6]} 18. Ba4 {[%clk 0:02:33.3]} 18... Kf7 {[%clk 0:01:18.7]} 19. Ke2
{[%clk 0:02:26.5]} 19... Be7 {[%clk 0:01:15.3]} 20. Bb3 {[%clk 0:01:57.5]} 20...
Ra8 {[%clk 0:01:12]} 21. Rd1 {[%clk 0:01:56.8]} 0-1

[Event "Early-Titled-Tuesday-Blitz-December-26-2023"]
[Site "Chess.com"]
[Date "2023.12.26"]
[Round "1"]
[White "Road2GM3000"]
[Black "Iball95"]
[Result "0-1"]
[WhiteElo "2478"]
[BlackElo "2810"]
[TimeControl "180+1"]
[EndTime "8:03:59 PST"]
[Termination "Iball95 won by resignation"]

1. d4 {[%clk 0:03:00.9]} 1... d5 {[%clk 0:02:59.3]} 2. c4 {[%clk 0:03:01.5]}
2... e6 {[%clk 0:03:00]} 3. Nc3 {[%clk 0:03:02.2]} 3... c5 {[%clk 0:03:00.2]} 4.
cxd5 {[%clk 0:03:02.9]} 4... cxd4 {[%clk 0:03:00.5]} 5. Qxd4 {[%clk 0:03:02.9]}
5... Nc6 {[%clk 0:03:00.3]} 6. Qd1 {[%clk 0:02:54]} 6... exd5 {[%clk 0:03:00.7]}
7. e3 {[%clk 0:02:54.3]} 7... Nf6 {[%clk 0:02:59.8]} 8. Nf3 {[%clk 0:02:54.3]}
8... Bb4 {[%clk 0:02:59.4]} 9. Bd3 {[%clk 0:02:53.9]} 9... O-O {[%clk
0:02:59.8]} 10. O-O {[%clk 0:02:54]} 10... Bg4 {[%clk 0:02:57.1]} 11. a3 {[%clk
0:02:54.2]} 11... Bxc3 {[%clk 0:02:49.4]} 12. bxc3 {[%clk 0:02:55.1]} 12... Bxf3
{[%clk 0:02:49.5]} 13. Qxf3 {[%clk 0:02:53]} 13... Ne5 {[%clk 0:02:50]} 14. Qd1
{[%clk 0:02:50.8]} 14... Nxd3 {[%clk 0:02:50.4]} 15. Qxd3 {[%clk 0:02:51.7]}
15... Rc8 {[%clk 0:02:50.3]} 16. Bb2 {[%clk 0:02:51.7]} 16... Re8 {[%clk
0:02:49.5]} 17. Rfd1 {[%clk 0:02:51.3]} 17... Rc4 {[%clk 0:02:49]} 18. a4 {[%clk
0:02:43.5]} 18... Qc7 {[%clk 0:02:48.6]} 19. h3 {[%clk 0:02:41.5]} 19... h6
{[%clk 0:02:47.1]} 20. a5 {[%clk 0:02:29.2]} 20... Re6 {[%clk 0:02:47.3]} 21.
Ba3 {[%clk 0:02:12.4]} 21... Rxc3 {[%clk 0:02:41.4]} 22. Qd4 {[%clk 0:02:05.6]}
22... Rc4 {[%clk 0:02:41.4]} 23. Qxa7 {[%clk 0:02:03.4]} 23... Ra6 {[%clk
0:02:41.2]} 24. Bd6 {[%clk 0:01:48.1]} 24... Rxa7 {[%clk 0:02:41]} 25. Bxc7
{[%clk 0:01:48.2]} 25... Rxc7 {[%clk 0:02:41.8]} 26. Rd4 {[%clk 0:01:42.1]}
26... Rc5 {[%clk 0:02:41.1]} 27. Rda4 {[%clk 0:01:42.8]} 27... g6 {[%clk
0:02:36.8]} 28. Kf1 {[%clk 0:01:43.4]} 28... h5 {[%clk 0:02:36.3]} 29. Ke2
{[%clk 0:01:44]} 29... Rc2+ {[%clk 0:02:34.6]} 30. Kf3 {[%clk 0:01:43.4]} 30...
Ne4 {[%clk 0:02:32.2]} 31. Kf4 {[%clk 0:01:42.4]} 31... Rxf2+ {[%clk 0:02:31.9]}
32. Ke5 {[%clk 0:01:42.9]} 32... Rf5+ {[%clk 0:02:30.6]} 33. Kd4 {[%clk
0:01:43.1]} 33... Kg7 {[%clk 0:02:30.3]} 34. g4 {[%clk 0:01:43.6]} 34... hxg4
{[%clk 0:02:31.2]} 35. hxg4 {[%clk 0:01:44.5]} 35... Rg5 {[%clk 0:02:31.4]} 36.
Rb1 {[%clk 0:01:32.3]} 36... Rxg4 {[%clk 0:02:31.1]} 37. Ke5 {[%clk 0:01:32.3]}
37... Rg5+ {[%clk 0:02:25.6]} 38. Kd4 {[%clk 0:01:28.6]} 38... Rg2 {[%clk
0:02:17.9]} 39. Ke5 {[%clk 0:01:27.2]} 39... Nc3 {[%clk 0:02:17.1]} 0-1

[Event "Early-Titled-Tuesday-Blitz-December-26-2023"]
[Site "Chess.com"]
[Date "2023.12.26"]
[Round "1"]
[White "Mikedannnn"]
[Black "ilya2700"]
[Result "1-0"]
[WhiteElo "2648"]
[BlackElo "2318"]
[TimeControl "180+1"]
[EndTime "8:04:06 PST"]
[Termination "Mikedannnn won by resignation"]

1. e4 {[%clk 0:03:00.9]} 1... c5 {[%clk 0:03:00]} 2. Nf3 {[%clk 0:03:00]} 2...
e6 {[%clk 0:03:00.1]} 3. c4 {[%clk 0:02:59.7]} 3... Nc6 {[%clk 0:02:59.6]} 4.
Nc3 {[%clk 0:02:59.1]} 4... Nf6 {[%clk 0:02:59.4]} 5. Be2 {[%clk 0:02:58.7]}
5... d5 {[%clk 0:02:58.8]} 6. exd5 {[%clk 0:02:58.2]} 6... exd5 {[%clk
0:02:59.7]} 7. d4 {[%clk 0:02:58.8]} 7... cxd4 {[%clk 0:02:57.2]} 8. Nxd4 {[%clk
0:02:58.5]} 8... Bc5 {[%clk 0:02:57.3]} 9. Be3 {[%clk 0:02:56]} 9... Bb6 {[%clk
0:02:49.7]} 10. c5 {[%clk 0:02:36]} 10... Bc7 {[%clk 0:02:47.2]} 11. O-O {[%clk
0:02:10]} 11... O-O {[%clk 0:02:46.5]} 12. Bf3 {[%clk 0:02:03.2]} 12... Re8
{[%clk 0:02:44.4]} 13. Bg5 {[%clk 0:01:51]} 13... Qe7 {[%clk 0:02:34.8]} 14.
Nxd5 {[%clk 0:01:42.6]} 14... Qe5 {[%clk 0:02:24.9]} 15. Bf4 {[%clk 0:01:18.7]}
15... Qxd4 {[%clk 0:02:20.8]} 16. Qxd4 {[%clk 0:01:18.5]} 16... Nxd4 {[%clk
0:02:21.7]} 17. Nxc7 {[%clk 0:01:18.8]} 17... Nxf3+ {[%clk 0:02:15.5]} 18. gxf3
{[%clk 0:01:18.9]} 18... Bh3 {[%clk 0:02:15]} 19. Nxe8 {[%clk 0:01:18.2]} 19...
Nd5 {[%clk 0:02:11.5]} 20. Nc7 {[%clk 0:01:07]} 1-0

[Event "Early-Titled-Tuesday-Blitz-December-26-2023"]
[Site "Chess.com"]
[Date "2023.12.26"]
[Round "1"]
[White "Ryukchess81"]
[Black "kakarot_001"]
[Result "0-1"]
[WhiteElo "2356"]
[BlackElo "2669"]
[TimeControl "180+1"]
[EndTime "8:04:10 PST"]
[Termination "kakarot_001 won by resignation"]

1. d4 {[%clk 0:03:00.9]} 1... Nf6 {[%clk 0:02:57.3]} 2. Bf4 {[%clk 0:03:01.3]}
2... c5 {[%clk 0:02:54.7]} 3. e3 {[%clk 0:03:01.7]} 3... Qb6 {[%clk 0:02:54.1]}
4. Na3 {[%clk 0:03:01.7]} 4... d6 {[%clk 0:02:48]} 5. Nc4 {[%clk 0:03:00.7]}
5... Qd8 {[%clk 0:02:42.9]} 6. dxc5 {[%clk 0:03:00.3]} 6... dxc5 {[%clk
0:02:43.8]} 7. Qxd8+ {[%clk 0:02:59.8]} 7... Kxd8 {[%clk 0:02:43.7]} 8. O-O-O+
{[%clk 0:03:00.7]} 8... Ke8 {[%clk 0:02:42.6]} 9. Nf3 {[%clk 0:02:54.5]} 9...
Nc6 {[%clk 0:02:40.3]} 10. Nfe5 {[%clk 0:02:54.8]} 10... Nxe5 {[%clk 0:02:35.8]}
11. Nxe5 {[%clk 0:02:55.7]} 11... a6 {[%clk 0:02:29.9]} 12. Nc4 {[%clk
0:02:35.3]} 12... Nd7 {[%clk 0:02:19.6]} 13. Be2 {[%clk 0:02:26.6]} 13... f6
{[%clk 0:02:07]} 14. Bc7 {[%clk 0:02:21.9]} 14... b5 {[%clk 0:01:57.8]} 15. Bf3
{[%clk 0:02:05.6]} 15... Ra7 {[%clk 0:01:58]} 16. Bb6 {[%clk 0:02:05.8]} 16...
Rb7 {[%clk 0:01:45.9]} 17. Bxb7 {[%clk 0:02:05.2]} 17... Bxb7 {[%clk 0:01:46.8]}
18. Na5 {[%clk 0:02:00.5]} 18... Bxg2 {[%clk 0:01:46.1]} 19. Rhg1 {[%clk
0:02:00.9]} 19... Bf3 {[%clk 0:01:44.5]} 20. Rd2 {[%clk 0:02:01.1]} 20... Nxb6
{[%clk 0:01:44.4]} 21. b3 {[%clk 0:01:45.4]} 21... e5 {[%clk 0:01:41.5]} 22. Kb2
{[%clk 0:01:44.3]} 22... c4 {[%clk 0:01:40.2]} 23. c3 {[%clk 0:01:44.5]} 23...
cxb3 {[%clk 0:01:38.4]} 24. axb3 {[%clk 0:01:45.4]} 24... Kf7 {[%clk 0:01:35.2]}
25. Rd8 {[%clk 0:01:41.6]} 25... Ba3+ {[%clk 0:01:34.9]} 26. Kxa3 {[%clk
0:01:40.9]} 26... Rxd8 {[%clk 0:01:35.8]} 27. Kb4 {[%clk 0:01:38.1]} 27... Nd5+
{[%clk 0:01:34.6]} 28. Kc5 {[%clk 0:01:37.2]} 28... Nxc3 {[%clk 0:01:35.5]} 0-1